[Event "ETCC Women 2013"]
[Site "Warsaw"]
[Date "2013.11.12"]
[Round "5"]
[White "Haast, Anne"]
[Black "Foisor, Cristina-Adela"]
[Result "1-0"]
[ECO "B28"]
[WhiteElo "2262"]
[BlackElo "2347"]
[PlyCount "147"]
[EventDate "2013.??.??"]
[EventCountry "POL"]
[WhiteTeam "Netherlands"]
[BlackTeam "Romania"]
[WhiteTeamCountry "NED"]
[BlackTeamCountry "ROU"]
[TimeControl "40/5400+30:1800+30"]

1. e4 {[%emt 0:00:00]} c5 {[%emt 0:00:00]} 2. Nf3 {[%emt 0:00:05]} a6 {[%emt 0:
00:00]} 3. c4 {[%emt 0:00:48]} d6 {[%emt 0:00:21]} 4. d4 {[%emt 0:01:12]} Bg4 {
[%emt 0:01:07]} 5. dxc5 {[%emt 0:01:06]} Qa5+ {[%emt 0:01:46]} 6. Nc3 {[%emt 0:
02:21]} Qxc5 {[%emt 0:00:10]} 7. Be3 {[%emt 0:02:33]} Qa5 {[%emt 0:00:16]} 8.
Be2 {[%emt 0:04:43]} Nf6 {[%emt 0:01:17]} 9. O-O {[%emt 0:02:07]} Nbd7 {[%emt
0:00:29]} 10. a3 {[%emt 0:11:15]} e6 {[%emt 0:01:44]} 11. b4 {[%emt 0:05:50]}
Qc7 {[%emt 0:01:56]} 12. Rc1 {[%emt 0:01:09]} Be7 {[%emt 0:00:49]} 13. h3 {
[%emt 0:05:37]} Bh5 {[%emt 0:04:27]} 14. g4 {[%emt 0:06:11]} Bg6 {[%emt 0:07:
57]} 15. Nd2 {[%emt 0:00:42]} e5 {[%emt 0:06:06]} 16. g5 {[%emt 0:11:51]} Ng8 {
[%emt 0:00:09]} 17. Nb3 {[%emt 0:01:50]} h6 {[%emt 0:03:25]} 18. h4 {[%emt 0:
07:15]} hxg5 {[%emt 0:00:12]} 19. hxg5 {[%emt 0:00:11]} Rh4 {[%emt 0:04:49]}
20. Bf3 {[%emt 0:13:09]} Qd8 {[%emt 0:04:38]} 21. Qd2 {[%emt 0:03:05]} Nf8 {
[%emt 0:00:25]} 22. c5 {[%emt 0:03:25]} Ne6 {[%emt 0:06:21]} 23. cxd6 {[%emt 0:
00:44]} Nxg5 {[%emt 0:15:24]} 24. Bg2 {[%emt 0:01:16]} Bf6 {[%emt 0:04:16]} 25.
d7+ {[%emt 0:00:41]} Kf8 {[%emt 0:00:19]} 26. Nc5 {[%emt 0:01:15]} Rb8 {[%emt
0:02:31]} 27. Qd6+ {[%emt 0:00:48]} Ne7 {[%emt 0:00:06]} 28. Nd5 {[%emt 0:02:
21]} Kg8 {[%emt 0:02:16]} 29. Nxf6+ {[%emt 0:03:39]} gxf6 {[%emt 0:00:44]} 30.
Qxf6 {[%emt 0:02:06]} Nh3+ {[%emt 0:00:15]} 31. Bxh3 {[%emt 0:01:43]} Rxh3 {
[%emt 0:00:04]} 32. Bg5 {[%emt 0:01:30]} Nc6 {[%emt 0:02:00]} 33. Qxg6+ {[%emt
0:02:15]} fxg6 {[%emt 0:00:06]} 34. Bxd8 {[%emt 0:00:03]} Rxd8 {[%emt 0:01:04]}
35. Nxb7 {[%emt 0:00:46]} Rxd7 {[%emt 0:00:19]} 36. Rxc6 {[%emt 0:00:08]} Rxb7
{[%emt 0:00:07]} 37. Rxa6 {[%emt 0:00:22]} Kg7 {[%emt 0:01:30]} 38. Kg2 {[%emt
0:01:16]} Rb3 {[%emt 0:03:11]} 39. Rd1 {[%emt 0:00:51]} Rf7 {[%emt 0:00:31]}
40. Rdd6 {[%emt 0:00:00]} Rbf3 {[%emt 0:00:00]} 41. Rd2 {[%emt 0:15:58]} Rb3 {
[%emt 0:05:27]} 42. Ra5 {[%emt 0:01:22]} Rf4 {[%emt 0:02:22]} 43. Rxe5 {[%emt
0:03:41]} Rxa3 {[%emt 0:00:20]} 44. b5 {[%emt 0:00:33]} Rb3 {[%emt 0:00:30]}
45. Rd7+ {[%emt 0:09:43]} Kh6 {[%emt 0:03:52]} 46. Re8 {[%emt 0:01:44]} Rg4+ {
[%emt 0:04:13]} 47. Kf1 {[%emt 0:00:05]} Rxb5 {[%emt 0:00:15]} 48. f3 {[%emt 0:
00:09]} Rf4 {[%emt 0:01:59]} 49. Kg2 {[%emt 0:00:20]} Kg5 {[%emt 0:09:15]} 50.
Kg3 {[%emt 0:00:04]} Rf6 {[%emt 0:00:15]} 51. e5 {[%emt 0:00:51]} Rf5 {[%emt 0:
01:17]} 52. Rd3 {[%emt 0:00:20]} Kh6 {[%emt 0:00:49]} 53. f4 {[%emt 0:00:43]}
Rf7 {[%emt 0:01:47]} 54. e6 {[%emt 0:00:19]} Rh7 {[%emt 0:02:14]} 55. Kg4 {
[%emt 0:00:50]} Rbb7 {[%emt 0:04:36]} 56. Rg8 {[%emt 0:02:02]} Rb5 {[%emt 0:00:
50]} 57. Rh3+ {[%emt 0:00:32]} Rh5 {[%emt 0:00:05]} 58. Rxh5+ {[%emt 0:00:06]}
gxh5+ {[%emt 0:00:04]} 59. Kf5 {[%emt 0:00:07]} Ra7 {[%emt 0:04:54]} 60. Rh8+ {
[%emt 0:00:26]} Kg7 {[%emt 0:00:06]} 61. Rxh5 {[%emt 0:00:19]} Ra5+ {[%emt 0:
00:21]} 62. Kg4 {[%emt 0:00:08]} Ra1 {[%emt 0:01:59]} 63. Re5 {[%emt 0:00:26]}
Kf8 {[%emt 0:00:13]} 64. Kf5 {[%emt 0:00:24]} Rh1 {[%emt 0:02:53]} 65. Kf6 {
[%emt 0:00:29]} Rh7 {[%emt 0:05:05]} 66. Ra5 {[%emt 0:01:18]} Rf7+ {[%emt 0:04:
20]} 67. Ke5 {[%emt 0:00:12]} Rb7 {[%emt 0:00:05]} 68. f5 {[%emt 0:00:23]} Kg7
{[%emt 0:00:15]} 69. f6+ {[%emt 0:01:27]} Kg6 {[%emt 0:00:04]} 70. e7 {[%emt 0:
00:12]} Rb8 {[%emt 0:07:43]} 71. Rd5 {[%emt 0:00:24]} Re8 {[%emt 0:03:33]} 72.
Rd8 {[%emt 0:00:23]} Kf7 {[%emt 0:00:04]} 73. Rxe8 {[%emt 0:00:17]} Kxe8 {
[%emt 0:00:04]} 74. Kd6 {[%emt 0:00:08]} 1-0

[Event "ETCC Women 2013"]
[Site "Warsaw"]
[Date "2013.11.12"]
[Round "5"]
[White "Heinatz, Dr. Gundula"]
[Black "Havlikova, Kristyna"]
[Result "0-1"]
[ECO "A48"]
[WhiteElo "2169"]
[BlackElo "2237"]
[PlyCount "88"]
[EventDate "2013.??.??"]
[EventCountry "POL"]
[WhiteTeam "Switzerland"]
[BlackTeam "Czech Republic"]
[WhiteTeamCountry "SUI"]
[BlackTeamCountry "CZE"]
[TimeControl "40/5400+30:1800+30"]

1. d4 {[%emt 0:00:00]} Nf6 {[%emt 0:00:00]} 2. Nf3 {[%emt 0:00:00]} g6 {[%emt
0:00:00]} 3. Bg5 {[%emt 0:00:00]} Bg7 {[%emt 0:00:00]} 4. Nbd2 {[%emt 0:00:13]}
d5 {[%emt 0:00:14]} 5. e3 {[%emt 0:00:23]} O-O {[%emt 0:00:17]} 6. Bd3 {[%emt
0:00:24]} c5 {[%emt 0:00:23]} 7. c3 {[%emt 0:00:57]} Qb6 {[%emt 0:00:18]} 8.
Rb1 {[%emt 0:10:42]} Nc6 {[%emt 0:00:28]} 9. O-O {[%emt 0:00:55]} e5 {[%emt 0:
00:47]} 10. Bxf6 {[%emt 0:07:29]} Bxf6 {[%emt 0:00:14]} 11. e4 {[%emt 0:00:28]}
Be6 {[%emt 0:23:32]} 12. dxc5 {[%emt 0:14:48]} Qxc5 {[%emt 0:00:26]} 13. b4 {
[%emt 0:04:12]} Qb6 {[%emt 0:10:13]} 14. Qe2 {[%emt 0:04:52]} Rfe8 {[%emt 0:10:
15]} 15. a4 {[%emt 0:04:30]} Qc7 {[%emt 0:05:24]} 16. Rfc1 {[%emt 0:06:03]} h6
{[%emt 0:10:15]} 17. b5 {[%emt 0:11:58]} Ne7 {[%emt 0:04:45]} 18. c4 {[%emt 0:
02:37]} dxe4 {[%emt 0:01:35]} 19. Nxe4 {[%emt 0:00:12]} Bg7 {[%emt 0:00:04]}
20. Nc3 {[%emt 0:08:32]} Nf5 {[%emt 0:08:34]} 21. Be4 {[%emt 0:07:54]} Nd4 {
[%emt 0:03:23]} 22. Qe3 {[%emt 0:00:25]} Kh7 {[%emt 0:07:09]} 23. Bd5 {[%emt 0:
02:11]} Rac8 {[%emt 0:03:49]} 24. Bxe6 {[%emt 0:00:57]} Rxe6 {[%emt 0:00:33]}
25. Nd5 {[%emt 0:00:48]} Qc5 {[%emt 0:01:35]} 26. Ne1 {[%emt 0:02:50]} h5 {
[%emt 0:02:26]} 27. Nd3 {[%emt 0:01:12]} Qd6 {[%emt 0:00:09]} 28. Rc3 {[%emt 0:
02:58]} Bh6 {[%emt 0:02:05]} 29. f4 {[%emt 0:00:16]} Nf5 {[%emt 0:00:13]} 30.
Qxa7 {[%emt 0:00:56]} Rxc4 {[%emt 0:03:21]} 31. Nxe5 {[%emt 0:02:29]} Rxe5 {
[%emt 0:01:31]} 32. Rxc4 {[%emt 0:00:43]} Rxd5 {[%emt 0:00:23]} 33. Rf1 {[%emt
0:00:50]} Qe7 {[%emt 0:01:03]} 34. Qf2 {[%emt 0:01:53]} Bg7 {[%emt 0:00:34]}
35. Re1 {[%emt 0:00:14]} Qd6 {[%emt 0:00:31]} 36. Kh1 {[%emt 0:01:16]} Rd2 {
[%emt 0:00:51]} 37. Qf3 {[%emt 0:00:11]} Qd7 {[%emt 0:00:22]} 38. b6 {[%emt 0:
00:22]} Nh4 {[%emt 0:00:29]} 39. Qe4 {[%emt 0:00:58]} Rxg2 {[%emt 0:00:24]} 40.
f5 {[%emt 0:00:00]} Rg4 {[%emt 0:00:00]} 41. fxg6+ {[%emt 0:01:31]} fxg6 {
[%emt 0:03:10]} 42. Qe2 {[%emt 0:02:43]} Qd5+ {[%emt 0:02:32]} 43. Re4 {[%emt
0:00:52]} Bc3 {[%emt 0:01:50]} 44. Qb5 {[%emt 0:02:08]} Rxe4 {[%emt 0:00:47]}
0-1

[Event "ETCC Women 2013"]
[Site "Warsaw"]
[Date "2013.11.12"]
[Round "5"]
[White "Hernandez Estevez, Yudania"]
[Black "Rakic, Marija"]
[Result "0-1"]
[ECO "B06"]
[WhiteElo "2284"]
[BlackElo "2291"]
[PlyCount "110"]
[EventDate "2013.??.??"]
[EventCountry "POL"]
[WhiteTeam "Spain"]
[BlackTeam "Serbia"]
[WhiteTeamCountry "ESP"]
[BlackTeamCountry "SRB"]
[TimeControl "40/5400+30:1800+30"]

1. e4 {[%emt 0:00:00]} g6 {[%emt 0:00:00]} 2. d4 {[%emt 0:00:00]} Bg7 {[%emt 0:
00:00]} 3. Nc3 {[%emt 0:00:00]} d6 {[%emt 0:00:00]} 4. Be3 {[%emt 0:01:32]} a6
{[%emt 0:00:01]} 5. Qd2 {[%emt 0:01:17]} b5 {[%emt 0:00:06]} 6. Bd3 {[%emt 0:
00:31]} Nd7 {[%emt 0:14:08]} 7. Nf3 {[%emt 0:08:10]} c5 {[%emt 0:01:53]} 8.
dxc5 {[%emt 0:13:13]} Nxc5 {[%emt 0:00:13]} 9. O-O {[%emt 0:11:52]} Bg4 {[%emt
0:06:15]} 10. Nd4 {[%emt 0:02:40]} Nf6 {[%emt 0:04:41]} 11. f3 {[%emt 0:04:43]}
Bd7 {[%emt 0:00:06]} 12. Kh1 {[%emt 0:09:31]} O-O {[%emt 0:02:55]} 13. Bh6 {
[%emt 0:01:45]} Bxh6 {[%emt 0:13:14]} 14. Qxh6 {[%emt 0:00:07]} Nxd3 {[%emt 0:
00:04]} 15. cxd3 {[%emt 0:00:07]} Qb6 {[%emt 0:00:31]} 16. Nce2 {[%emt 0:03:07]
} Nh5 {[%emt 0:05:45]} 17. Nc2 {[%emt 0:07:30]} Ng7 {[%emt 0:07:00]} 18. Ne3 {
[%emt 0:01:36]} Be6 {[%emt 0:01:49]} 19. Nc3 {[%emt 0:06:30]} Qd4 {[%emt 0:03:
42]} 20. Ncd5 {[%emt 0:04:22]} Ra7 {[%emt 0:00:38]} 21. Rab1 {[%emt 0:04:22]}
Bxd5 {[%emt 0:18:59]} 22. Nxd5 {[%emt 0:00:06]} Qxd3 {[%emt 0:00:22]} 23. Rfd1
{[%emt 0:06:39]} Qe2 {[%emt 0:00:58]} 24. Rdc1 {[%emt 0:03:51]} Ne6 {[%emt 0:
01:28]} 25. Rc6 {[%emt 0:02:18]} Nd4 {[%emt 0:01:39]} 26. Rxa6 {[%emt 0:00:59]}
Rd7 {[%emt 0:01:46]} 27. Rxd6 {[%emt 0:00:07]} Nf5 {[%emt 0:00:15]} 28. Qxf8+ {
[%emt 0:01:21]} Kxf8 {[%emt 0:00:05]} 29. Rxd7 {[%emt 0:00:04]} Nh4 {[%emt 0:
00:45]} 30. Rg1 {[%emt 0:03:44]} Qxb2 {[%emt 0:00:09]} 31. Rxe7 {[%emt 0:00:40]
} Qxa2 {[%emt 0:00:48]} 32. Rb7 {[%emt 0:00:23]} Qc4 {[%emt 0:00:51]} 33. Nf4 {
[%emt 0:01:38]} Qc6 {[%emt 0:01:13]} 34. Rb8+ {[%emt 0:00:31]} Kg7 {[%emt 0:00:
05]} 35. Nd5 {[%emt 0:00:43]} Qc5 {[%emt 0:00:55]} 36. Rb7 {[%emt 0:00:16]} h5
{[%emt 0:00:57]} 37. Rc7 {[%emt 0:00:57]} Qf2 {[%emt 0:00:57]} 38. Rb7 {[%emt
0:00:33]} Nxf3 {[%emt 0:05:11]} 39. gxf3 {[%emt 0:00:37]} Qxf3+ {[%emt 0:00:04]
} 40. Rg2 {[%emt 0:00:00]} h4 {[%emt 0:00:00]} 41. h3 {[%emt 0:09:01]} Qxe4 {
[%emt 0:08:19]} 42. Rxb5 {[%emt 0:00:49]} Qd3 {[%emt 0:00:10]} 43. Rgb2 {[%emt
0:03:28]} Qxh3+ {[%emt 0:00:27]} 44. Kg1 {[%emt 0:00:08]} Qg3+ {[%emt 0:00:19]}
45. Kh1 {[%emt 0:02:56]} g5 {[%emt 0:08:01]} 46. Rg2 {[%emt 0:04:09]} Qe1+ {
[%emt 0:00:57]} 47. Kh2 {[%emt 0:01:35]} Qe5+ {[%emt 0:00:10]} 48. Kh3 {[%emt
0:03:34]} Qf5+ {[%emt 0:00:50]} 49. Kh2 {[%emt 0:00:11]} g4 {[%emt 0:00:16]}
50. Kg1 {[%emt 0:02:41]} g3 {[%emt 0:02:09]} 51. Nc3 {[%emt 0:01:42]} Qd3 {
[%emt 0:02:07]} 52. Rb3 {[%emt 0:04:26]} h3 {[%emt 0:01:20]} 53. Re2 {[%emt 0:
00:49]} Qf3 {[%emt 0:00:19]} 54. Ra3 {[%emt 0:01:52]} g2 {[%emt 0:02:15]} 55.
Re1 {[%emt 0:00:48]} Qg3 {[%emt 0:00:10]} 0-1

[Event "ETCC Women 2013"]
[Site "Warsaw"]
[Date "2013.11.12"]
[Round "5"]
[White "Iwanow, Anna"]
[Black "Makropoulou, Marina"]
[Result "1/2-1/2"]
[ECO "C71"]
[WhiteElo "2206"]
[BlackElo "2234"]
[PlyCount "92"]
[EventDate "2013.??.??"]
[EventCountry "POL"]
[WhiteTeam "Poland"]
[BlackTeam "Greece"]
[WhiteTeamCountry "POL"]
[BlackTeamCountry "GRE"]
[TimeControl "40/5400+30:1800+30"]

1. e4 {[%emt 0:00:00]} e5 {[%emt 0:00:00]} 2. Nf3 {[%emt 0:00:00]} Nc6 {[%emt
0:00:00]} 3. Bb5 {[%emt 0:00:00]} a6 {[%emt 0:00:21]} 4. Ba4 {[%emt 0:00:00]}
d6 {[%emt 0:01:06]} 5. d4 {[%emt 0:02:42]} b5 {[%emt 0:00:20]} 6. Bb3 {[%emt 0:
00:59]} Nxd4 {[%emt 0:00:19]} 7. Nxd4 {[%emt 0:00:47]} exd4 {[%emt 0:00:05]} 8.
c3 {[%emt 0:00:22]} d3 {[%emt 0:01:29]} 9. a4 {[%emt 0:05:08]} Nf6 {[%emt 0:08:
20]} 10. axb5 {[%emt 0:02:33]} Be7 {[%emt 0:08:30]} 11. Qxd3 {[%emt 0:01:05]}
O-O {[%emt 0:03:23]} 12. bxa6 {[%emt 0:06:51]} c6 {[%emt 0:14:11]} 13. Be3 {
[%emt 0:08:57]} Ng4 {[%emt 0:01:28]} 14. a7 {[%emt 0:06:53]} d5 {[%emt 0:08:41]
} 15. exd5 {[%emt 0:05:38]} Nxe3 {[%emt 0:01:28]} 16. fxe3 {[%emt 0:04:00]} Bc5
{[%emt 0:04:01]} 17. O-O {[%emt 0:06:07]} Rxa7 {[%emt 0:03:15]} 18. Rxa7 {
[%emt 0:00:33]} Bxa7 {[%emt 0:00:03]} 19. Kh1 {[%emt 0:18:19]} cxd5 {[%emt 0:
01:46]} 20. Bxd5 {[%emt 0:02:10]} Kh8 {[%emt 0:03:12]} 21. Nd2 {[%emt 0:02:09]}
Bxe3 {[%emt 0:03:29]} 22. Nc4 {[%emt 0:02:13]} Ba6 {[%emt 0:07:08]} 23. Qf5 {
[%emt 0:04:50]} Bxc4 {[%emt 0:04:27]} 24. Bxc4 {[%emt 0:00:15]} f6 {[%emt 0:02:
35]} 25. Qh3 {[%emt 0:04:10]} Qd2 {[%emt 0:06:00]} 26. Qf3 {[%emt 0:02:21]} Bb6
{[%emt 0:03:56]} 27. Bd3 {[%emt 0:03:08]} Qg5 {[%emt 0:07:02]} 28. Qe4 {[%emt
0:02:03]} g6 {[%emt 0:00:52]} 29. b4 {[%emt 0:01:24]} f5 {[%emt 0:00:52]} 30.
Qe5+ {[%emt 0:04:57]} Qf6 {[%emt 0:00:06]} 31. Qxf6+ {[%emt 0:00:46]} Rxf6 {
[%emt 0:00:02]} 32. c4 {[%emt 0:00:37]} Be3 {[%emt 0:01:58]} 33. c5 {[%emt 0:
00:26]} Kg7 {[%emt 0:00:49]} 34. Bc4 {[%emt 0:01:42]} f4 {[%emt 0:02:54]} 35.
Rd1 {[%emt 0:01:36]} Kf8 {[%emt 0:01:49]} 36. Bd5 {[%emt 0:01:35]} Ke7 {[%emt
0:00:25]} 37. Bf3 {[%emt 0:00:13]} Rf8 {[%emt 0:00:58]} 38. c6 {[%emt 0:00:24]}
Rd8 {[%emt 0:01:00]} 39. Re1 {[%emt 0:00:45]} Kd6 {[%emt 0:00:25]} 40. g4 {
[%emt 0:00:00]} Kc7 {[%emt 0:00:00]} 41. b5 {[%emt 0:11:20]} g5 {[%emt 0:03:13]
} 42. Ra1 {[%emt 0:02:17]} h6 {[%emt 0:00:55]} 43. Rd1 {[%emt 0:01:57]} Rxd1+ {
[%emt 0:04:48]} 44. Bxd1 {[%emt 0:00:01]} Bb6 {[%emt 0:00:07]} 45. Kg2 {[%emt
0:00:03]} Kd6 {[%emt 0:00:01]} 46. Kf3 {[%emt 0:00:15]} Ke5 {[%emt 0:00:05]}
1/2-1/2

[Event "ETCC Women 2013"]
[Site "Warsaw"]
[Date "2013.11.12"]
[Round "5"]
[White "Kachiani-Gersinska, Ketino"]
[Black "Kosteniuk, Alexandra"]
[Result "0-1"]
[ECO "A06"]
[WhiteElo "2365"]
[BlackElo "2510"]
[PlyCount "72"]
[EventDate "2013.??.??"]
[EventCountry "POL"]
[WhiteTeam "Germany"]
[BlackTeam "Russia"]
[WhiteTeamCountry "GER"]
[BlackTeamCountry "RUS"]
[TimeControl "40/5400+30:1800+30"]

1. Nf3 {[%emt 0:01:07]} d5 {[%emt 0:00:00]} 2. c4 {[%emt 0:00:34]} e6 {[%emt 0:
00:28]} 3. b3 {[%emt 0:02:22]} Nf6 {[%emt 0:00:47]} 4. Bb2 {[%emt 0:00:23]} b6
{[%emt 0:00:55]} 5. g3 {[%emt 0:02:52]} Bb7 {[%emt 0:00:34]} 6. Bg2 {[%emt 0:
00:05]} Be7 {[%emt 0:01:07]} 7. O-O {[%emt 0:01:35]} O-O {[%emt 0:00:09]} 8. e3
{[%emt 0:10:07]} a5 {[%emt 0:08:38]} 9. Nc3 {[%emt 0:10:46]} Nbd7 {[%emt 0:17:
48]} 10. d4 {[%emt 0:15:00]} Qb8 {[%emt 0:08:47]} 11. Qc2 {[%emt 0:04:19]} a4 {
[%emt 0:09:57]} 12. Rad1 {[%emt 0:06:45]} Ra5 {[%emt 0:04:36]} 13. Ne5 {[%emt
0:16:45]} dxc4 {[%emt 0:05:15]} 14. Nc6 {[%emt 0:05:46]} Bxc6 {[%emt 0:00:31]}
15. Bxc6 {[%emt 0:00:05]} cxb3 {[%emt 0:00:21]} 16. axb3 {[%emt 0:00:05]} a3 {
[%emt 0:00:43]} 17. Ba1 {[%emt 0:00:05]} b5 {[%emt 0:01:52]} 18. Qe2 {[%emt 0:
02:56]} b4 {[%emt 0:03:36]} 19. Na2 {[%emt 0:07:35]} Qb6 {[%emt 0:02:47]} 20.
Rc1 {[%emt 0:00:05]} Nc5 {[%emt 0:09:42]} 21. dxc5 {[%emt 0:00:33]} Qxc6 {
[%emt 0:00:04]} 22. Nxb4 {[%emt 0:02:58]} Qb7 {[%emt 0:00:07]} 23. Bc3 {[%emt
0:01:46]} Rxc5 {[%emt 0:06:13]} 24. Nd3 {[%emt 0:00:49]} Rd5 {[%emt 0:03:26]}
25. Nf4 {[%emt 0:03:02]} Rd7 {[%emt 0:00:59]} 26. Qc4 {[%emt 0:01:17]} Qe4 {
[%emt 0:01:02]} 27. Qb5 {[%emt 0:01:22]} c6 {[%emt 0:01:03]} 28. Qa6 {[%emt 0:
00:16]} e5 {[%emt 0:04:55]} 29. Ne2 {[%emt 0:00:21]} Bc5 {[%emt 0:02:40]} 30.
Qc4 {[%emt 0:01:10]} Qxc4 {[%emt 0:00:24]} 31. bxc4 {[%emt 0:00:06]} Ne4 {
[%emt 0:00:21]} 32. Bxe5 {[%emt 0:02:01]} Nd2 {[%emt 0:00:04]} 33. Bd4 {[%emt
0:00:08]} Bxd4 {[%emt 0:00:18]} 34. Nxd4 {[%emt 0:00:11]} Nxf1 {[%emt 0:00:08]}
35. Kxf1 {[%emt 0:00:13]} Ra8 {[%emt 0:00:30]} 36. Ra1 {[%emt 0:00:35]} a2 {
[%emt 0:00:12]} 0-1

[Event "ETCC Women 2013"]
[Site "Warsaw"]
[Date "2013.11.12"]
[Round "5"]
[White "Kaps, Darja"]
[Black "Sahl, Sheila Barth"]
[Result "1-0"]
[ECO "A03"]
[WhiteElo "2221"]
[BlackElo "2233"]
[PlyCount "47"]
[EventDate "2013.??.??"]
[EventCountry "POL"]
[WhiteTeam "Slovenia"]
[BlackTeam "Norway"]
[WhiteTeamCountry "SLO"]
[BlackTeamCountry "NOR"]
[TimeControl "40/5400+30:1800+30"]

1. f4 {[%emt 0:00:00]} d5 {[%emt 0:00:00]} 2. b3 {[%emt 0:00:09]} Bf5 {[%emt 0:
02:17]} 3. Bb2 {[%emt 0:00:43]} e6 {[%emt 0:02:08]} 4. Nf3 {[%emt 0:00:49]} Nf6
{[%emt 0:00:29]} 5. e3 {[%emt 0:00:40]} Nbd7 {[%emt 0:04:35]} 6. Be2 {[%emt 0:
02:27]} Be7 {[%emt 0:17:34]} 7. O-O {[%emt 0:00:37]} h6 {[%emt 0:00:30]} 8. Nc3
{[%emt 0:33:57]} c6 {[%emt 0:01:47]} 9. h3 {[%emt 0:12:00]} Qc7 {[%emt 0:05:46]
} 10. a4 {[%emt 0:03:19]} O-O-O {[%emt 0:04:40]} 11. Nd4 {[%emt 0:02:03]} Bh7 {
[%emt 0:02:19]} 12. a5 {[%emt 0:00:46]} g5 {[%emt 0:04:28]} 13. a6 {[%emt 0:01:
42]} Bc5 {[%emt 0:27:44]} 14. axb7+ {[%emt 0:03:05]} Kxb7 {[%emt 0:00:10]} 15.
Na4 {[%emt 0:06:29]} Ne4 {[%emt 0:07:58]} 16. Nxc5+ {[%emt 0:03:33]} Ndxc5 {
[%emt 0:02:38]} 17. b4 {[%emt 0:00:41]} Nd7 {[%emt 0:00:31]} 18. b5 {[%emt 0:
00:15]} Nb8 {[%emt 0:01:35]} 19. bxc6+ {[%emt 0:03:15]} Nxc6 {[%emt 0:00:08]}
20. Nxc6 {[%emt 0:00:28]} Qxc6 {[%emt 0:01:28]} 21. Bxh8 {[%emt 0:05:41]} Rxh8
{[%emt 0:00:31]} 22. Rxa7+ {[%emt 0:01:29]} Kxa7 {[%emt 0:00:25]} 23. Qa1+ {
[%emt 0:00:05]} Kb7 {[%emt 0:00:21]} 24. Rb1+ {[%emt 0:00:19]} 1-0

[Event "ETCC Women 2013"]
[Site "Warsaw"]
[Date "2013.11.12"]
[Round "5"]
[White "Khotenashvili, Bela"]
[Black "Kursova, Maria"]
[Result "1-0"]
[ECO "E12"]
[WhiteElo "2524"]
[BlackElo "2339"]
[PlyCount "65"]
[EventDate "2013.??.??"]
[EventCountry "POL"]
[WhiteTeam "Georgia"]
[BlackTeam "Armenia"]
[WhiteTeamCountry "GEO"]
[BlackTeamCountry "ARM"]
[TimeControl "40/5400+30:1800+30"]

1. d4 {[%emt 0:00:00]} Nf6 {[%emt 0:00:00]} 2. c4 {[%emt 0:00:00]} e6 {[%emt 0:
00:00]} 3. Nf3 {[%emt 0:00:03]} b6 {[%emt 0:00:00]} 4. a3 {[%emt 0:00:15]} Bb7
{[%emt 0:00:16]} 5. Nc3 {[%emt 0:00:20]} d5 {[%emt 0:00:27]} 6. cxd5 {[%emt 0:
00:10]} Nxd5 {[%emt 0:00:08]} 7. Qc2 {[%emt 0:00:13]} Be7 {[%emt 0:01:03]} 8.
e4 {[%emt 0:00:24]} Nxc3 {[%emt 0:00:29]} 9. bxc3 {[%emt 0:00:06]} O-O {[%emt
0:00:37]} 10. Bd3 {[%emt 0:00:30]} c5 {[%emt 0:00:34]} 11. O-O {[%emt 0:00:24]}
Qc7 {[%emt 0:00:30]} 12. Qe2 {[%emt 0:01:57]} Rd8 {[%emt 0:01:09]} 13. Rd1 {
[%emt 0:00:43]} Nd7 {[%emt 0:19:45]} 14. a4 {[%emt 0:01:32]} Nf8 {[%emt 0:05:
08]} 15. a5 {[%emt 0:07:30]} bxa5 {[%emt 0:08:00]} 16. Bd2 {[%emt 0:03:20]}
cxd4 {[%emt 0:20:42]} 17. cxd4 {[%emt 0:01:57]} Bb4 {[%emt 0:00:08]} 18. Rdb1 {
[%emt 0:04:30]} Ng6 {[%emt 0:02:46]} 19. g3 {[%emt 0:00:44]} Ne7 {[%emt 0:01:
24]} 20. Bxb4 {[%emt 0:06:02]} axb4 {[%emt 0:00:02]} 21. Rxb4 {[%emt 0:00:06]}
Nc6 {[%emt 0:05:26]} 22. Rba4 {[%emt 0:01:43]} a5 {[%emt 0:01:28]} 23. e5 {
[%emt 0:26:59]} Nb4 {[%emt 0:12:42]} 24. Be4 {[%emt 0:00:48]} Bxe4 {[%emt 0:12:
18]} 25. Qxe4 {[%emt 0:00:09]} Ra7 {[%emt 0:00:32]} 26. Ng5 {[%emt 0:02:07]} h6
{[%emt 0:01:47]} 27. Qh7+ {[%emt 0:04:38]} Kf8 {[%emt 0:00:02]} 28. Ne4 {[%emt
0:04:18]} Nc2 {[%emt 0:03:59]} 29. Rc1 {[%emt 0:03:06]} Qc6 {[%emt 0:00:37]}
30. Ra2 {[%emt 0:00:49]} Rxd4 {[%emt 0:00:12]} 31. Raxc2 {[%emt 0:01:00]} Qxe4
{[%emt 0:00:21]} 32. Rc8+ {[%emt 0:00:09]} Ke7 {[%emt 0:00:09]} 33. Qxg7 {
[%emt 0:00:05]} 1-0